[Event "9th Porticcio Open 2024"]
[Site "Porticcio"]
[Date "2024.07.01"]
[Round "4.8"]
[White "Clarke, Brandon G I"]
[Black "Pieri, Pierre-Louis"]
[Result "1-0"]
[ECO "C45"]
[WhiteElo "2498"]
[BlackElo "2190"]
[Annotator "TA"]
[PlyCount "43"]
[EventDate "2024.07.01"]
[EventType "swiss"]
[EventCountry "FRA"]
[SourceTitle "playchess.com"]
[Source "ChessBase"]
[SourceQuality "1"]
[TimeControl "5400+30"]

{[%evp 14,43,-9,-14,-35,-36,8,0,16,19,23,5,57,60,62,58,86,90,89,92,83,82,267,240,579,606,1405,1350,29989,1807,29994,29993]} 1. e4 {[%emt 0:00:03]} e5 {[%emt 0:00:11]} 2. Nf3 {[%emt 0:00:09]} Nc6 {[%emt 0:00:07]} 3. d4 {[%emt 0:00:19]} exd4 {[%emt 0:00:07]} 4. Nxd4 {[%emt 0:00:04]} Nf6 {[%emt 0:00:08][%cal Bg8f6,Bf6d5,Bd5b4,Bb4c2][%mdl 32]} 5. Nxc6 {[%emt 0:00:06]} bxc6 {[%emt 0:00:07]} 6. e5 {[%emt 0:00:05]} Qe7 {[%emt 0:00:12]} 7. Qe2 {[%emt 0:00:02]} Nd5 {[%emt 0:00:23]} 8. h4 {[%emt 0:00:08]} Qe6 {[%emt 0:00:52]} 9. Nd2 {[%emt 0:00:16][%cal Bb1d2,Bd2f3,Bf3g5][%mdl 32]} Nb4 {[%emt 0:06:29]} 10. Nf3 $1 {[%emt 0:17:12]} Ba6 {[%emt 0:01:34] The position is equal.} 11. c4 $1 {[%emt 0:02:20]} c5 {[%emt 0:13:29] Repels Nd4} 12. Ng5 {[%emt 0:15:56]} (12. a3 {simplifies} Nc6 13. Bd2 d6 14. exd6 Qxe2+ 15. Bxe2 Bxd6 16. Bc3) 12... Qf5 {[%emt 0:05:57]} (12... Qe7 $11) 13. g4 $14 {[%emt 0:04:44]} Qg6 {[%emt 0:10:43] aiming for ...Nc2+.} 14. h5 {[%emt 0:05:14]} Nc2+ {[%emt 0:04:00]} 15. Kd1 {[%emt 0:04:48]} Qc6 {[%emt 0:00:12]} 16. Kxc2 {[%emt 0:07:19]} Qxh1 {[%emt 0:00:58] [#]} 17. e6 $1 {[%emt 0:03:14]} dxe6 {[%emt 0:09:05]} (17... fxe6 $16 18. Nxe6 Kf7 (18... dxe6 $2 19. Qxe6+ Be7 20. Bg5 $18) 19. Nxc7 Bb7) 18. Nxe6 $40 {[%emt 0:00:32][%mdl 128] White is out for blood.} Kd7 $2 {[%emt 0:00:30] [#]} (18... fxe6 $2 19. Qxe6+ Be7 20. Bg5 $18) (18... Bb7 {is more resistant.} 19. Nxc7+ Kd7 20. Nxa8 Be4+ 21. Kb3 Bd6) 19. Qd3+ $1 {[%emt 0:05:13]} Kc6 {[%emt 0:13:39] [#]} 20. Be2 $1 {[%emt 0:04:48] Threatening mate with Bf3+.} Qe1 {[%emt 0:10:23]} (20... fxe6 21. Bf3+) 21. Bf4 {[%emt 0:02:05]} (21. Bf3+ $142 Kb6 22. a4 (22. Bxa8 Bxc4 23. Qxc4 Qxe6 $18) 22... Bb5 23. axb5 (23. Bxa8 a5 $18) (23. a5+ Qxa5 24. Rxa5 Kxa5 25. cxb5 Kb6 26. Bd2 Rd8 27. Qxd8 Bd6 28. Qd7 a5 29. Qc6+ Ka7 30. Qb7#) 23... a6 24. Bxa8 axb5 25. Qf3 (25. Nf4 bxc4 26. Qd7 Qxf2+ 27. Kb1 Qg2 28. Bxg2 h6 29. Qc6#) 25... Qe2+ 26. Qxe2 Bd6 27. Qe4 (27. Nxg7 Rc8 28. cxb5 c6 29. Qd2 Rxa8 30. Rxa8 Kxb5 31. Qxd6 Kb4 32. Be3 Kc4 33. Qxc5#) 27... Rxa8 28. Qxa8 fxe6 29. Qa6#) 21... Bxc4 {[%emt 0:02:04]} 22. Qe4+ {[%emt 0:26:53] Black did not feel at home in the position after the opening.   Weighted Error Value: White=0.02 (flawless) /Black=1.49.  Loses game:     	---       	Black=1      Mistake:       	---       	Black=2      Inaccurate:     	---       	Black=3      OK:         	White=3     	Black=4      Best:        	White=2     	---        Strong:       	White=4     	---} 1-0

[Event "9th Porticcio Open 2024"]
[Site "Porticcio"]
[Date "2024.07.01"]
[Round "4.9"]
[White "Daulet, Alikhan"]
[Black "Deladerriere, Helio"]
[Result "1-0"]
[ECO "D22"]
[WhiteElo "1877"]
[BlackElo "1850"]
[Annotator "NA RC"]
[PlyCount "79"]
[EventDate "2024.07.01"]
[EventType "swiss"]
[EventCountry "FRA"]
[SourceTitle "playchess.com"]
[Source "ChessBase"]
[SourceQuality "1"]
[TimeControl "5400+30"]

1. d4 {[%emt 0:00:03]} d5 {[%emt 0:01:36]} 2. c4 {[%emt 0:00:08]} dxc4 {[%emt 0:00:09]} 3. Nf3 {[%emt 0:00:11]} a6 {[%emt 0:00:25]} 4. e3 {[%emt 0:01:11]} b5 {[%emt 0:00:18]} 5. a4 {[%emt 0:00:11]} Bb7 {[%emt 0:00:18]} 6. b3 {[%emt 0:00:26]} e6 {[%emt 0:04:54] D22: Queen's Gambit Accepted: 3 Nf3 a6 4 e3.} 7. bxc4 {[%emt 0:00:59]} bxc4 {[%emt 0:01:07]} 8. Bxc4 {[%emt 0:01:16]} Nf6 {[%emt 0:01:49]} 9. O-O {[%emt 0:01:11]} Bd6 {[%emt 0:00:37]} 10. Nbd2 {[%emt 0:02:08]} O-O {[%emt 0:02:11]} 11. Qe2 {[%emt 0:00:30]} Nc6 {[%emt 0:10:14]} 12. a5 {[%emt 0:02:22]} e5 {[%emt 0:06:29]} 13. d5 {[%emt 0:02:03]} Ne7 {[%emt 0:01:42]} 14. e4 {[%emt 0:00:05]} c6 {[%emt 0:01:23]} 15. dxc6 {[%emt 0:00:31]} Nxc6 {[%emt 0:00:24]} 16. Nb3 {[%emt 0:00:20]} Nd4 {[%emt 0:03:16]} 17. Nfxd4 {[%emt 0:05:02]} exd4 {[%emt 0:00:11]} 18. e5 {[%emt 0:01:33]} Re8 {[%emt 0:01:43]} 19. f4 {[%emt 0:00:47]} Nd7 {[%emt 0:02:13]} 20. Bxf7+ {[%emt 0:04:07]} Kxf7 {[%emt 0:01:41]} 21. Qc4+ {[%emt 0:00:17]} Kf8 {[%emt 0:06:05]} 22. exd6 {[%emt 0:00:24]} Rc8 {[%emt 0:02:50]} 23. Qd3 {[%emt 0:01:18]} Kg8 {[%emt 0:03:27]} 24. Bb2 {[%emt 0:04:13]} Nf6 {[%emt 0:02:01]} 25. Nxd4 {[%emt 0:02:12]} Qxd6 {[%emt 0:02:28]} 26. Qg3 {[%emt 0:01:28]} Ne4 {[%emt 0:08:34]} 27. Qg4 {[%emt 0:00:23]} Nf6 {[%emt 0:02:18]} 28. Qg3 {[%emt 0:06:20]} (28. Qxg7+ $1 $14 {deserves consideration.} Kxg7 29. Nf5+ Kg8 30. Nxd6) 28... Ne4 {[%emt 0:07:30]} 29. Qa3 {[%emt 0:01:30]} Qd5 {[%emt 0:08:59]} 30. Qa2 {[%emt 0:00:42]} Rc4 $1 {[%emt 0:01:31]} 31. Rfe1 {[%emt 0:02:59]} Rf8 {[%emt 0:04:56] [#]} 32. Rxe4 $1 {[%emt 0:01:04]} Kh8 {[%emt 0:04:28]} 33. Qa3 {[%emt 0:01:29]} Rg8 {[%emt 0:03:41]} 34. Rae1 $18 {[%emt 0:00:29]} Rc5 {[%emt 0:03:21]} 35. Nf3 {[%emt 0:00:40]} Rxa5 {[%emt 0:00:29]} 36. Bxg7+ {[%emt 0:00:51]} Kxg7 {[%emt 0:01:02]} 37. Qe7+ {[%emt 0:00:24]} Qf7 {[%emt 0:02:05]} 38. Qxf7+ {[%emt 0:00:08]} Kxf7 {[%emt 0:00:01]} 39. Re7+ {[%emt 0:00:06]} Kg6 {[%emt 0:00:25]} 40. Rxb7 {[%emt 0:00:05]} 1-0

[Event "9th Porticcio Open 2024"]
[Site "Porticcio"]
[Date "2024.07.01"]
[Round "4.10"]
[White "Don Ignazi, Pierre Ange"]
[Black "Robertson, Blair Michael"]
[Result "1-0"]
[ECO "B41"]
[WhiteElo "1870"]
[BlackElo "1998"]
[Annotator "TA"]
[PlyCount "151"]
[EventDate "2024.07.01"]
[EventType "swiss"]
[EventCountry "FRA"]
[SourceTitle "playchess.com"]
[Source "ChessBase"]
[SourceQuality "1"]
[TimeControl "5400+30"]

{[%evp 9,150,22,46,31,24,29,65,52,60,58,53,48,50,59,54,65,72,41,68,61,50,50,280,269,275,0,0,0,0,-12,-11,-10,-11,-8,-14,-34,-12,-61,-16,-61,-59,-63,-64,-64,-60,-83,-81,-103,-98,-95,-98,-96,-100,-97,-85,-88,-85,-81,-3,-85,0,8,21,4,40,39,136,133,122,79,262,262,460,460,460,458,462,261,350,227,462,462,470,470,443,217,231,205,194,241,250,28,306,-8,-8,-8,-8,-8,8,8,100,100,29969,29974,29974,29976,29976,29977,29977,29973,29975,29971,29972,0,29975,0,29977,29978,29977,29978,29976,29976,29982,29983,29983,29984,29984,29984,29987,29988,29991,29991,29992,29991,29992,29993,29993,29993,29995,29996,29997,29998,29999]} 1. e4 {[%emt 0:00:32]} c5 {[%emt 0:00:06]} 2. Nf3 {[%emt 0:00:12]} e6 {[%emt 0:00:05]} 3. d4 {[%emt 0:00:09]} cxd4 {[%emt 0:00:05]} 4. Nxd4 {[%emt 0:00:06]} a6 {[%emt 0:00:21]} 5. g3 {[%emt 0:03:03]} Nc6 {[%emt 0:04:00]} 6. Nxc6 {[%emt 0:02:18]} bxc6 {[%emt 0:00:08]} 7. Bg2 {[%emt 0:00:05]} d5 {[%emt 0:01:53]} 8. O-O {[%emt 0:00:30] White is slightly better.} Nf6 {[%emt 0:03:06][%cal Bg8f6,Bf6d5,Bd5c3][%mdl 32]} 9. exd5 {[%emt 0:07:55]} cxd5 {[%emt 0:00:17]} 10. c4 {[%emt 0:00:08]} Rb8 {[%emt 0:11:00]} 11. cxd5 {[%emt 0:03:02]} Nxd5 {[%emt 0:01:21]} 12. Qe2 {[%emt 0:10:51]} Be7 {[%emt 0:11:28]} 13. Rd1 {[%emt 0:01:25][%cal Oc1h6]} Qb6 {[%emt 0:06:36]} 14. Nc3 {[%emt 0:08:48]} Nxc3 {[%emt 0:20:10]} 15. bxc3 {[%emt 0:00:37] And now Be3 would win.} Bd7 $2 {[%emt 0:02:07]} (15... O-O $14) 16. Bf4 $18 {[%emt 0:06:20]} Bb5 {[%emt 0:13:34]} 17. Qe5 {[%emt 0:03:07]} ({White should try} 17. Qg4 $18 O-O 18. Rdb1 (18. Bxb8 Qxb8 19. a4 Be8 $18)) 17... O-O $11 {[%emt 0:01:23]} 18. Rab1 {[%emt 0:03:58]} Rbd8 {[%emt 0:03:53]} 19. Rxd8 {[%emt 0:08:29]} Qxd8 {[%emt 0:00:16]} 20. Be4 {[%emt 0:03:21]} Bf6 {[%emt 0:02:53]} 21. Qh5 {[%emt 0:03:58][%csl Ge4][%cal Rh5h7]} g6 $1 {[%emt 0:00:24]} 22. Qf3 {[%emt 0:00:18]} Bg7 {[%emt 0:03:35]} 23. Bc2 {[%emt 0:15:26]} (23. a4 $11 Bxa4 24. h4) 23... Qf6 {[%emt 0:02:04]} 24. Qe3 {[%emt 0:03:24] Inhibits e5.} Qxc3 {[%emt 0:01:32]} 25. Qxc3 {[%emt 0:00:43]} Bxc3 {[%emt 0:00:06]} 26. a4 {[%emt 0:00:06]} Be2 {[%emt 0:01:59]} 27. Be4 {[%emt 0:03:48]} Rd8 {[%emt 0:00:56]} 28. Bc7 {[%emt 0:05:20]} Rd1+ {[%emt 0:00:29]} 29. Rxd1 {[%emt 0:00:14]} Bxd1 $17 {[%emt 0:00:06][%mdl 4096] Endgame. KBB-KBB} 30. Bc6 {[%emt 0:00:25]} Be2 {[%emt 0:01:09]} 31. Bb6 {[%emt 0:00:30]} g5 {[%emt 0:01:27]} 32. f3 {[%emt 0:01:03]} Kg7 {[%emt 0:01:36]} 33. Kf2 {[%emt 0:00:09]} Bd1 {[%emt 0:00:09]} (33... Bc4 $17) 34. Ke3 {[%emt 0:00:36] [#]} (34. a5 $11) 34... Be1 {[%emt 0:02:51]} ({Black should play} 34... a5 $1 $17) 35. a5 $11 {[%emt 0:04:45]} Bb3 {[%emt 0:01:45]} 36. Kd3 {[%emt 0:00:01] Dodges Bc4+} h5 {[%emt 0:01:19]} 37. Bb7 {[%emt 0:00:19]} Bb4 {[%emt 0:00:52]} (37... Bd5 $14 38. Bxa6 Bxf3) 38. Bxa6 $16 {[%emt 0:00:25]} Bd5 {[%emt 0:00:17] Dodges Bb7} 39. Ke2 {[%emt 0:00:59]} e5 $2 {[%emt 0:01:13]} (39... Kf8 $16) 40. Bd3 $18 {[%emt 0:00:22]} Bc3 $2 {[%emt 0:00:58]} (40... Kf6 {is a better defense.} 41. Be4 Bc4+ 42. Ke3 (42. Bd3 Bd5 $18) 42... Ke6) 41. a6 {[%emt 0:00:20]} g4 {[%emt 0:00:22]} 42. fxg4 {[%emt 0:02:06] Black must now prevent Ke3.} hxg4 {[%emt 0:00:09]} 43. Kf2 {[%emt 0:00:59]} (43. Ke3 $142 {Be4 would now be deadly.} Be1 44. Bf5) 43... Kf6 {[%emt 0:01:02]} 44. Be2 {[%emt 0:00:25]} Ke6 $2 {[%emt 0:00:37]} (44... Kf5 {was called for.} 45. a7 f6) 45. Bxg4+ {[%emt 0:00:25]} f5 {[%emt 0:00:06]} 46. Be2 {[%emt 0:00:17]} Kd6 {[%emt 0:00:34]} 47. Bd8 {[%emt 0:00:44]} (47. a7 $142) 47... Bd4+ {[%emt 0:00:11]} 48. Kf1 {[%emt 0:00:24]} f4 {[%emt 0:00:41]} 49. gxf4 {[%emt 0:00:46]} exf4 {[%emt 0:00:06]} 50. Bd3 $2 {[%emt 0:00:15]} (50. Bh4 $18) 50... f3 $2 {[%emt 0:00:38][%mdl 8192] [#]} (50... Be6 $1 $11) 51. h4 $2 {[%emt 0:00:22]} (51. Bh4 $1 $18) 51... Be6 $11 {[%emt 0:00:36]} 52. Ke1 {[%emt 0:01:08]} f2+ {[%emt 0:00:53]} 53. Kd2 {[%emt 0:00:11]} Bg4 {[%emt 0:00:48]} (53... Bh3 {simplifies} 54. Bg5 f1=Q 55. Bxf1 Bxf1 56. Be3 Bxe3+ 57. Kxe3 Bxa6 58. h5 Ke6) 54. Bf1 {[%emt 0:00:25] Kd3 is the strong threat.} (54. Bg5 $5 Bh3 $8 55. Be3 $11) 54... Ba7 {[%emt 0:00:13]} (54... Ke5 $11 {keeps the balance.}) 55. Bg5 $16 {[%emt 0:00:16] aiming for Be3. White stays focused until the end.} Ke6 $2 {[%emt 0:00:55][%mdl 8192]} (55... Bc8 $16 56. Be3 Bxe3+ 57. Kxe3 Bxa6 58. Bxa6 Ke7) 56. Be3 {[%emt 0:00:18]} Bb8 {[%emt 0:00:27]} 57. a7 {[%emt 0:00:37]} Bxa7 {[%emt 0:00:04]} 58. Bxa7 {[%emt 0:01:45]} Kf5 {[%emt 0:00:34]} 59. Ke3 {[%emt 0:00:00]} Bd1 {[%emt 0:00:27]} 60. Bh3+ {[%emt 0:00:00]} Bg4 {[%emt 0:00:18]} 61. Bf1 {[%emt 0:00:00]} Bd1 $1 {[%emt 0:01:50]} 62. Kd2 {[%emt 0:00:15]} Bg4 $1 {[%emt 0:00:00]} 63. Bxf2 {[%emt 0:00:03] White mates.} Bh5 {[%emt 0:00:00]} 64. Ke3 {[%emt 0:00:08]} Be8 {[%emt 0:00:00]} 65. Bh3+ {[%emt 0:00:07]} Kg6 {[%emt 0:00:00]} 66. Kf4 {[%emt 0:00:14]} Bf7 {[%emt 0:00:07]} 67. Bg4 {[%emt 0:00:12]} Kh6 {[%emt 0:00:14]} 68. Kf5 {[%emt 0:00:25]} Bg6+ {[%emt 0:00:27]} 69. Kf6 {[%emt 0:00:05]} Be8 {[%emt 0:00:17]} 70. Be3+ {[%emt 0:00:09]} Kh7 {[%emt 0:00:09]} 71. Bf5+ {[%emt 0:00:08]} Kh8 {[%emt 0:00:38]} 72. Bg6 {[%emt 0:00:05]} Bb5 {[%emt 0:00:20]} 73. Bd4 {[%emt 0:00:18][%cal Rf6f7]} Bc4 {[%emt 0:00:16]} 74. h5 {[%emt 0:00:12][%cal Bh4h5,Bh5h6][%mdl 32]} Bb3 {[%emt 0:02:05]} 75. h6 {[%emt 0:00:10]} Bg8 {[%emt 0:00:45]} 76. Kf5# {[%emt 0:00:11] Weighted Error Value: White=0.41/Black=0.47.  Loses game:     	---       	Black=4      Missed win:     	White=3     	---        Mistake:       	White=4     	Black=6      Inaccurate:     	White=4     	Black=5      OK:         	White=26    	Black=15     Best:        	White=2     	Black=2      Strong:       	---       	Black=2} 1-0

[Event "9th Porticcio Open 2024"]
[Site "Porticcio"]
[Date "2024.07.01"]
[Round "4.11"]
[White "Grisoni, Emma"]
[Black "Bernardi, Alexandre"]
[Result "1/2-1/2"]
[ECO "C56"]
[WhiteElo "1746"]
[BlackElo "1866"]
[Annotator "NA RC"]
[PlyCount "64"]
[EventDate "2024.07.01"]
[EventType "swiss"]
[EventCountry "FRA"]
[SourceTitle "playchess.com"]
[Source "ChessBase"]
[SourceQuality "1"]
[TimeControl "5400+30"]

1. e4 {[%emt 0:00:02]} e5 {[%emt 0:00:30]} 2. Nf3 {[%emt 0:00:03]} Nc6 {[%emt 0:00:04]} 3. d4 {[%emt 0:00:04]} exd4 {[%emt 0:00:11]} 4. Bc4 {[%emt 0:00:33]} Nf6 {[%emt 0:00:24]} 5. O-O {[%emt 0:00:42]} Nxe4 {[%emt 0:00:57]} 6. Re1 {[%emt 0:00:21]} d5 {[%emt 0:00:06]} 7. Bxd5 {[%emt 0:00:35]} Qxd5 {[%emt 0:00:06]} 8. Nc3 {[%emt 0:00:10]} Qh5 {[%emt 0:00:18]} 9. Nxe4 {[%emt 0:02:16]} Be6 {[%emt 0:00:15]} 10. Bg5 {[%emt 0:00:33]} Bd6 {[%emt 0:00:32]} 11. Nxd6+ {[%emt 0:00:14]} cxd6 {[%emt 0:00:09]} 12. Bf4 {[%emt 0:00:16]} Qd5 {[%emt 0:15:21]} 13. c3 {[%emt 0:03:48]} O-O {[%emt 0:01:44]} 14. Nxd4 {[%emt 0:02:26]} Nxd4 {[%emt 0:04:20]} 15. Qxd4 {[%emt 0:03:39]} Qxd4 {[%emt 0:01:21]} 16. cxd4 {[%emt 0:01:16]} Rfd8 {[%emt 0:03:52]} 17. a4 {[%emt 0:03:33]} Rac8 {[%emt 0:03:04]} 18. Rac1 {[%emt 0:01:06]} d5 {[%emt 0:01:33]} 19. Rxc8 {[%emt 0:05:11]} Rxc8 {[%emt 0:00:25]} 20. Rc1 {[%emt 0:01:15]} Rxc1+ {[%emt 0:02:49]} 21. Bxc1 {[%emt 0:00:04]} Kf8 {[%emt 0:00:48]} 22. Kf1 {[%emt 0:00:41]} Ke7 {[%emt 0:00:35]} 23. Ke2 {[%emt 0:00:16]} Bf5 {[%emt 0:00:33]} 24. b4 {[%emt 0:02:43]} Ke6 {[%emt 0:02:28]} 25. Bf4 {[%emt 0:00:58]} Bc2 {[%emt 0:00:47]} 26. a5 {[%emt 0:00:25]} Kf5 {[%emt 0:00:21]} 27. Bb8 {[%emt 0:00:13]} a6 {[%emt 0:00:08]} 28. Ke3 {[%emt 0:00:06]} Bb3 {[%emt 0:00:43]} 29. Bc7 {[%emt 0:02:01]} Bc2 {[%emt 0:00:18]} 30. Bb8 {[%emt 0:00:24]} Bb3 {[%emt 0:00:13]} 31. Bc7 {[%emt 0:00:30]} Bc2 {[%emt 0:01:23]} 32. Bb8 {[%emt 0:00:16]} Bb3 {[%emt 0:00:51]} 1/2-1/2

[Event "9th Porticcio Open 2024"]
[Site "Porticcio"]
[Date "2024.07.02"]
[Round "5.1"]
[White "Fedorchuk, Sergey A."]
[Black "Druska, Juraj"]
[Result "1-0"]
[ECO "C01"]
[WhiteElo "2546"]
[BlackElo "2466"]
[Annotator "TA"]
[PlyCount "83"]
[EventDate "2024.07.01"]
[EventType "swiss"]
[EventCountry "FRA"]
[SourceTitle "playchess.com"]
[Source "ChessBase"]
[SourceQuality "1"]
[TimeControl "5400+30"]

{[%evp 18,83,13,9,16,12,10,15,18,16,23,20,23,26,25,16,50,31,31,28,45,41,43,41,58,43,69,56,81,74,77,53,87,85,85,78,70,95,91,102,83,84,103,75,249,257,304,304,237,250,12844,12847,29938,29939,12840,10122,12848,6402,29965,29967,29965,29966,29975,29975,29975,29976,29970,29969]} 1. e4 {[%emt 0:00:05]} e5 {[%emt 0:00:21]} 2. Nf3 {[%emt 0:02:21]} Nf6 {[%emt 0:00:13]} 3. Nxe5 {[%emt 0:03:01]} d6 {[%emt 0:00:10]} 4. Nf3 {[%emt 0:01:11]} Nxe4 {[%emt 0:00:10]} 5. d3 {[%emt 0:03:30]} Nf6 {[%emt 0:00:09]} 6. d4 {[%emt 0:00:05]} d5 {[%emt 0:03:12]} 7. Bd3 {[%emt 0:00:23]} Bd6 {[%emt 0:00:08]} 8. O-O {[%emt 0:02:55]} O-O {[%emt 0:00:08]} 9. h3 {[%emt 0:01:55]} h6 {[%emt 0:01:03]} 10. Re1 {[%emt 0:01:14]} Re8 {[%emt 0:00:59]} 11. Rxe8+ {[%emt 0:01:26]} Qxe8 {[%emt 0:00:55]} 12. Nc3 {[%emt 0:00:28][%cal Bb1c3,Bc3e2,Be2g3][%mdl 32]} a6 {[%emt 0:07:10] Wards off Nb5. The position is equal.} 13. Ne2 {[%emt 0:04:16]} Nc6 {[%emt 0:00:37]} 14. Bf4 {[%emt 0:02:50]} Nb4 {[%emt 0:08:00]} 15. Bxd6 {[%emt 0:09:32]} cxd6 {[%emt 0:00:02]} 16. Ng3 {[%emt 0:00:20]} Qa4 {[%emt 0:15:42][%cal Ob4d3]} 17. a3 {[%emt 0:26:39]} Nxd3 {[%emt 0:00:19]} 18. Qxd3 {[%emt 0:00:05]} Bd7 {[%emt 0:04:23]} 19. Re1 {[%emt 0:01:18]} Re8 {[%emt 0:19:34]} 20. Rxe8+ {[%emt 0:01:58]} Nxe8 {[%emt 0:00:06]} 21. Nh4 {[%emt 0:07:37]} Nf6 {[%emt 0:14:40]} 22. Nhf5 {[%emt 0:02:22]} Bxf5 {[%emt 0:00:23]} 23. Nxf5 $14 {[%emt 0:00:17][%mdl 4096] Endgame. KQN-KQN} (23. Qxf5 Qxd4 24. Qc8+ Kh7 25. Qxb7 Qd1+ 26. Nf1 Qxc2 $17) 23... Qd7 {[%emt 0:00:20]} 24. g4 {[%emt 0:06:11]} Qe6 {[%emt 0:07:12]} 25. Qe3 {[%emt 0:03:31]} Ne8 {[%emt 0:00:08]} 26. f3 {[%emt 0:04:01] White is much more active.} h5 {[%emt 0:00:43]} 27. Kf2 {[%emt 0:00:11]} (27. gxh5 Qxf5 28. Qxe8+ Kh7 $11) (27. Ne7+ Kf8 28. Qxe6 fxe6 $11) 27... hxg4 {[%emt 0:00:43]} 28. hxg4 {[%emt 0:00:14]} ({Much worse is} 28. fxg4 Kf8 $11) 28... g6 {[%emt 0:01:16]} 29. Qg5 {[%emt 0:03:53]} Nf6 {[%emt 0:02:30]} 30. c3 {[%emt 0:02:34]} a5 $2 {[%emt 0:02:44] Loses the game.} (30... b5 $16) 31. a4 $18 {[%emt 0:02:12]} Qd7 {[%emt 0:03:12]} 32. Qxf6 {[%emt 0:02:37][%csl Gf5][%cal Rf6g7] [#]} gxf5 {[%emt 0:00:01]} 33. Qxf5 {[%emt 0:00:26]} Qxf5 {[%emt 0:06:44]} (33... Qxa4 34. Qg5+ (34. Qxd5 Qc2+ 35. Kg3 Qxb2 $14) 34... Kh8 35. Qxd5 Qc2+ 36. Kg3 Qxb2 37. Qxd6 (37. Qxf7 Qxc3 38. Qf6+ Kg8 $14) 37... Qxc3) 34. gxf5 {[%emt 0:00:02] KP-KP} Kg7 {[%emt 0:00:03]} 35. Kg3 {[%emt 0:00:17]} Kh6 {[%emt 0:00:08]} 36. Kg4 {[%emt 0:02:00]} f6 {[%emt 0:00:13]} 37. b3 {[%emt 0:01:02] [#] c4 would kill now.} ({Weaker is} 37. b4 b6 $11) 37... b6 {[%emt 0:00:04]} 38. c4 {[%emt 0:00:33] White mates.} Kg7 {[%emt 0:00:01]} 39. Kf4 {[%emt 0:01:19]} Kh6 {[%emt 0:00:19]} 40. cxd5 {[%emt 0:00:31]} Kh5 {[%emt 0:00:05]} 41. Ke3 {[%emt 0:00:10]} Kg5 {[%emt 0:00:06]} 42. Ke4 {[%emt 0:00:12] Weighted Error Value: White=0.04 (flawless) /Black=0.65.  Loses game:     	---       	Black=1      Mistake:       	---       	Black=1      Inaccurate:     	---       	Black=4      OK:         	White=11    	Black=5      Best:        	White=1     	Black=1} 1-0

[Event "9th Porticcio Open 2024"]
[Site "Porticcio"]
[Date "2024.07.02"]
[Round "5.2"]
[White "Bailet, Pierre"]
[Black "Batsiashvili, Nino"]
[Result "1/2-1/2"]
[ECO "C47"]
[WhiteElo "2491"]
[BlackElo "2450"]
[Annotator "TA"]
[PlyCount "66"]
[EventDate "2024.07.01"]
[EventType "swiss"]
[EventCountry "FRA"]
[SourceTitle "playchess.com"]
[Source "ChessBase"]
[SourceQuality "1"]
[TimeControl "5400+30"]

{[%evp 15,66,0,0,-14,26,11,32,11,15,17,15,12,5,14,24,6,13,10,6,4,21,0,0,0,0,2,4,0,0,0,0,0,1,0,0,0,0,0,0,0,0,0,0,0,0,0,0,0,0,0,0,0,0]} 1. e4 {[%emt 0:00:18]} e5 {[%emt 0:00:26]} 2. Nf3 {[%emt 0:00:15]} Nc6 {[%emt 0:00:03]} 3. Nc3 {[%emt 0:01:53]} Nf6 {[%emt 0:00:25]} 4. d4 {[%emt 0:00:16]} exd4 {[%emt 0:00:33]} 5. Nxd4 {[%emt 0:00:12]} Bb4 {[%emt 0:00:04]} 6. Nxc6 {[%emt 0:00:14]} bxc6 {[%emt 0:00:04]} 7. Bd3 {[%emt 0:00:12]} O-O {[%emt 0:03:49]} 8. O-O {[%emt 0:00:32]} d5 {[%emt 0:00:04]} 9. exd5 {[%emt 0:02:16]} Bg4 {[%emt 0:03:58]} 10. f3 {[%emt 0:07:03]} Bh5 {[%emt 0:00:08]} 11. dxc6 {[%emt 0:00:06] White is slightly better.} Qd4+ $1 {[%emt 0:01:40]} 12. Kh1 {[%emt 0:00:09][%cal Od3h7] [#] And now Bxh7+! would win.} Bxc3 {[%emt 0:00:36]} 13. bxc3 {[%emt 0:00:09]} Qxc3 {[%emt 0:00:14]} 14. Bf4 {[%emt 0:01:08]} Qxc6 {[%emt 0:02:37]} 15. Qe2 {[%emt 0:04:28]} Nd5 {[%emt 0:10:54] The position is equal.} 16. Bg3 {[%emt 0:09:43]} Bg6 {[%emt 0:01:43]} 17. Bb5 {[%emt 0:01:48] A strong pair of Bishops.} Qc3 {[%emt 0:18:55]} 18. Qe5 {[%emt 0:25:38]} Qxe5 {[%emt 0:02:19]} 19. Bxe5 {[%emt 0:00:26]} Ne3 {[%emt 0:00:05]} 20. Rf2 {[%emt 0:01:08]} Nxc2 {[%emt 0:02:25]} 21. Rc1 {[%emt 0:01:07]} Nb4 {[%emt 0:00:48]} 22. Rxc7 {[%emt 0:05:59]} Nd3 {[%emt 0:00:53]} 23. Bxd3 {[%emt 0:00:32]} Bxd3 {[%emt 0:00:02]} 24. h4 {[%emt 0:02:01]} Rfc8 {[%emt 0:01:49]} 25. Rd2 {[%emt 0:00:42]} Rxc7 {[%emt 0:00:16]} 26. Bxc7 $11 {[%emt 0:00:07][%mdl 4096] Endgame. KRB-KRB} Bb5 {[%emt 0:00:09]} 27. Rd8+ {[%emt 0:00:11]} Rxd8 {[%emt 0:00:03]} 28. Bxd8 {[%emt 0:00:06] KB-KB} a6 {[%emt 0:00:13]} 29. Bb6 {[%emt 0:00:10]} h5 {[%emt 0:00:15]} 30. Bc7 {[%emt 0:00:07]} Bc6 {[%emt 0:00:17]} 31. Bb6 {[%emt 0:00:06]} Bb5 {[%emt 0:00:07]} 32. Bc7 {[%emt 0:00:05]} Bc6 {[%emt 0:00:03]} 33. Bb6 {[%emt 0:00:10]} Bb5 {[%emt 0:00:04] A balanced but interesting game.   Weighted Error Value: White=0.04 (flawless) /Black=0.03 (flawless) .  Inaccurate:     	---       	Black=1      OK:         	White=7     	Black=11     Best:        	White=1     	Black=2      Strong:       	---       	Black=1} 1/2-1/2